Cogmind - Beta 12 *** ADVENTURER MODE // 2023.04.12 @ 15:00:37 Player: Xero Result: Self-destructed Performance ------------- Evolutions (1) 500 Regions Visited (2) 400 Robots Destroyed (5) 25 Value Destroyed (46) 46 Prototype IDs (0) 0 Alien Tech Used (0) 0 Bonus (200) 200 TOTAL SCORE: 1171 Bonus ------- Pacifist 200 Cogmind --------- Core Integrity 363/400 Matter 187/300 Energy 265/265 System Corruption 0% Temperature Cool (0) Movement Rolling (100) Location -9/Materials Parts ------- > --- POWER (1) -------- Improved Ion Engine > --- PROPULSION (4) --- Compact Wheel > --- UTILITY (2) ------ Small Storage Unit Sensor Array > --- WEAPON (2) ------- Light Assault Rifle Mace > --- INVENTORY (8) ---- Improved Ion Engine Flight Unit Peak State ------------ > --- POWER ------------ Improved Ion Engine > --- PROPULSION ------- Compact Wheel Compact Wheel > --- UTILITY ---------- Small Storage Unit Sensor Array > --- WEAPON ----------- Small Laser Light Assault Rifle > --- INVENTORY -------- Improved Ion Engine [Rating: 8] Favorites ----------- Power Improved Ion Engine Engine Improved Ion Engine Propulsion Compact Wheel Wheel Compact Wheel Utility Small Storage Unit Device Sensor Array Storage Small Storage Unit Weapon Small Laser Energy Gun Small Laser Ballistic Gun Light Assault Rifle Impact Weapon Mace Build | -11 -10 -9 ------- Run | Jun Mat Mat Slots Evolved 2 | . . 2 Power . | . . . Propulsion 2 | . . 2 Utility . | . . . Weapon . | . . . Parts Attached 8 | 5 2 1 Power 1 | . 1 . Engine 1 | . 1 . Core . | . . . Reactor . | . . . Propulsion 2 | 2 . . Treads . | . . . Leg . | . . . Wheel 2 | 2 . . Hover . | . . . Flight . | . . . Utility 2 | 1 1 . Device 1 | . 1 . Storage 1 | 1 . . Processor . | . . . Hackware . | . . . Protection . | . . . Artifact . | . . . Weapon 3 | 2 . 1 Energy Gun 1 | 1 . . Energy Cannon . | . . . Ballistic Gun 1 | 1 . . Ballistic Cannon . | . . . Launcher . | . . . Special Weapon . | . . . Impact Weapon 1 | . . 1 Slashing Weapon . | . . . Piercing Weapon . | . . . Special Melee Weapon . | . . . Unidentified Prototypes . | . . . Parts Lost 1 | . . 1 Power . | . . . Propulsion 1 | . . 1 Utility . | . . . Weapon . | . . . Highest Loss Streak 1 | . . 1 To Critical Strikes . | . . . Average Slot Usage (%) 77 | . 81 72 Engine 9 | . 8 11 Wheel 22 | . 28 17 Device 6 | . 2 11 Storage 12 | . 14 11 Energy Gun 12 | . 14 10 Ballistic Gun 12 | . 14 11 Naked Turns . | . . . Heaviest Build 16 | 7 15 16 Greatest Support 32 | 32 32 32 Greatest Overweight (x) 1 | 1 . . Average Overweight (x) . | . . . Largest Inventory Capacity 8 | 8 8 8 Average Capacity 7 | 7 8 8 Most Carried 2 | . 1 2 Average Carried . | . . 1 Final Capacity 8 | 8 8 8 Final Carried 2 | . 1 2 Class Distribution -------------------- 100% | Mutant Dominant Class ---------------- Mutant | -10/Materials Mutant | -9/Materials Resources | -11 -10 -9 ----------- Run | Jun Mat Mat Matter Collected 175 | 118 . 57 Remotely . | . . . Salvage Created 155 | . . 155 Parts 7 | . . 7 Haulers Intercepted . | . . . Recyclers Shooed 1 | . . 1 Parts Field Recycled . | . . . Retrieved Matter . | . . . Parts Self-Destructed . | . . . Prevented . | . . . Kills | -11 -10 -9 ------- Run | Jun Mat Mat Combat Hostiles Destroyed 4 | . . 4 Guns 4 | . . 4 Classes Destroyed 2 | . . 2 Recycler 1 | . . 1 Swarmer 4 | . . 4 Best Kill Streak 5 | . . 5 Combat Bots Only 4 | . . 4 Max Kills in Single Turn 2 | . . 2 Gunslinging 1 | . . 1 Exploded . | . . . Melee . | . . . Uniques/NPCs Destroyed . | . . . Combat | -11 -10 -9 -------- Run | Jun Mat Mat Damage Taken 149 | . . 149 Core 37 | . . 37 Absorbed by Shields . | . . . Core Remaining (%) 100 | 100 100 . Volleys Fired 13 | . . 13 Largest 2 | . . 2 Hottest 60 | . . 60 Shots Fired 26 | . . 26 Gun 26 | . . 26 Cannon . | . . . Launcher . | . . . Special . | . . . Kinetic 13 | . . 13 Thermal 13 | . . 13 Explosive . | . . . Electromagnetic . | . . . Robot Hit Streak 10 | . . 10 Robot Miss Streak 1 | . . 1 Penetration Max . | . . . Secondary Targets 3 | . . 3 Max Gunslinging Chain 1 | . . 1 Shots Hit Robots 17 | . . 17 Core Hits 7 | . . 7 Critical Kills . | . . . Critical Parts Destroyed . | . . . Critical Strikes . | . . . Melee Attacks . | . . . Impact . | . . . Slashing . | . . . Piercing . | . . . Sneak Attacks . | . . . Combat Hostiles . | . . . Follow-up Attacks . | . . . Damage Inflicted 167 | . . 167 Guns 167 | . . 167 Cannons . | . . . Explosions . | . . . Melee . | . . . Ramming . | . . . Kinetic 68 | . . 68 Thermal 99 | . . 99 Explosive . | . . . Electromagnetic . | . . . Impact . | . . . Slashing . | . . . Piercing . | . . . Highest Corruption . | . . . Average Corruption . | . . . Corruption Purged . | . . . Corruption Blocked . | . . . Overload Shots . | . . . Overflow Damage . | . . . Projectiles . | . . . Explosions . | . . . Melee . | . . . Knockbacks . | . . . Impact . | . . . Kinetic . | . . . Secondary . | . . . Self-Inflicted Damage . | . . . Shots . | . . . Rammed . | . . . Targets Rammed . | . . . Kicked . | . . . Crushed . | . . . Highest Temperature 32 | . . 32 Average Temperature 14 | . . 14 Received Heat Transfer 9 | . . 9 Siege Activations . | . . . Robots Corrupted . | . . . Combat Hostiles . | . . . Parts Fried . | . . . Impact Corruptions . | . . . Robots Melted . | . . . Combat Hostiles . | . . . Parts Melted . | . . . Heat Transferred 225 | . . 225 Parts Sabotaged . | . . . Parts Stolen . | . . . Parts Stripped . | . . . Power Chain Reactions . | . . . Missiles Intercepted . | . . . Alert | -11 -10 -9 ------- Run | Jun Mat Mat Peak Influence 90 | . 15 90 Initial 5 | . . 5 Average 23 | . 8 45 Maximum Alert Level . | . . . Low Security (%) 100 | 100 100 100 Level 1 . | . . . Level 2 . | . . . Level 3 . | . . . Level 4 . | . . . Level 5 . | . . . High Security . | . . . Max Security . | . . . Squads Dispatched 1 | . . 1 Investigation . | . . . Extermination . | . . . Reinforcement 1 | . . 1 Assault . | . . . Garrison . | . . . Intercept . | . . . Searches Triggered . | . . . Construction Impeded . | . . . Haulers Reinforced . | . . . Active Scanning Responses . | . . . Cargo Convoy Interrupts . | . . . Stealth | -11 -10 -9 --------- Run | Jun Mat Mat Distress Signals 1 | . . 1 Communications Jammed . | . . . Distress Signals . | . . . Times Spotted 7 | . 1 6 Peak Tracking Total 3 | . 1 3 Tactical Retreats . | . . . Traps | -11 -10 -9 ------- Run | Jun Mat Mat Traps Triggered 2 | . 2 . Indirectly . | . . . Trap Hack Attempts . | . . . Triggered . | . . . Disarmed . | . . . Reprogrammed . | . . . Reused . | . . . Traps Extracted . | . . . Installed . | . . . Triggered . | . . . Machines | -11 -10 -9 ---------- Run | Jun Mat Mat Machines Disabled . | . . . Max in Single Turn . | . . . Machines Repaired . | . . . Machines Sabotaged . | . . . Overloaded Fab Kills . | . . . Hacking | -11 -10 -9 --------- Run | Jun Mat Mat Machines Accessed . | . . . Terminals . | . . . Fabricators . | . . . Repair Stations . | . . . Recycling Units . | . . . Scanalyzers . | . . . Garrison Access . | . . . Total Hacks . | . . . Successful . | . . . Failed . | . . . Catastrophic . | . . . Database Lockouts . | . . . Manual . | . . . Terminals . | . . . Fabricators . | . . . Repair Stations . | . . . Recycling Units . | . . . Scanalyzers . | . . . Garrison Access . | . . . Terminal Hacks . | . . . Fabricator Hacks . | . . . Repair Station Hacks . | . . . Recycling Unit Hacks . | . . . Scanalyzer . | . . . Garrison Access Hacks . | . . . Unauthorized Hacks . | . . . Terminals . | . . . Fabricators . | . . . Repair Stations . | . . . Recycling Units . | . . . Scanalyzers . | . . . Garrison Access . | . . . Data Cores Recovered . | . . . Used . | . . . Hacking Detections . | . . . Full Trace Events . | . . . Feedback Events . | . . . Feedback Blocked . | . . . Robot Schematics Acquired . | . . . Robots Built . | . . . Authchips . | . . . Time . | . . . Total Robot Build Rating . | . . . Part Schematics Acquired . | . . . Parts Built . | . . . Authchips . | . . . Time . | . . . Total Part Build Rating . | . . . Parts Repaired . | . . . Time . | . . . Parts Recycled . | . . . Recycled Matter . | . . . Retrieved Matter . | . . . Retrieved Components . | . . . Parts Scanalyzed . | . . . Part Schematics Acquired . | . . . Parts Damaged . | . . . Bothacking | -11 -10 -9 ------------ Run | Jun Mat Mat Used RIF Installer . | . . . Robots Hacked . | . . . Non-combat . | . . . Combat . | . . . Robot Hacks Applied . | . . . Relay Couplers Released . | . . . Fabnet Peak Effective % . | . . . Robots Rewired . | . . . Allies Hacked . | . . . Hacks Repelled . | . . . Allies | -11 -10 -9 -------- Run | Jun Mat Mat Total Allies . | . . . Largest Group . | . . . Highest-Rated Group . | . . . Highest-Rated Ally . | . . . Total Orders . | . . . Ally Attacks . | . . . Total Damage . | . . . Kills . | . . . Allies Corrupted . | . . . Allies Melted . | . . . Intel | -11 -10 -9 ------- Run | Jun Mat Mat Robot Analysis Total . | . . . Derelict Logs Recovered . | . . . Drone Launches . | . . . Drone Recoveries . | . . . Exploration | -11 -10 -9 ------------- Run | Jun Mat Mat Turns Passed 287 | 35 126 126 Spaces Moved 239 | 30 123 86 Core 17 | 17 . . Treads . | . . . Legs . | . . . Wheels 222 | 13 123 86 Hover . | . . . Flight . | . . . Fastest Speed 50 | 50 100 100 Average Speed 99 | 93 100 100 Slowest Speed 100 | 100 100 100 Overloaded Moves . | . . . Propulsion Burnouts . | . . . Robots Hopped . | . . . Cave-ins Triggered . | . . . Exploration Rate (%) 10 | 3 21 8 Regions Visited 2 Branch Regions . Pre-discovered Areas . | . . . Known Exits Taken . | . . . Unknown Exits Taken 2 | 1 1 . Scrap Searched . | . . . Spaces Dug . | . . . Terrain Destroyed . | . . . Melee . | . . . Projectile . | . . . AOE . | . . . Terrain Rammed . | . . . Walls Destroyed . | . . . Machines Disabled . | . . . Actions | -11 -10 -9 --------- Run | Jun Mat Mat Total 261 | 34 125 102 Wait . | . . . Move 237 | 29 122 86 Hop . | . . . Pick Up 2 | . 1 1 Fast Attach 8 | 5 2 1 Attach . | . . . Detach . | . . . Swap . | . . . Drop 1 | . . 1 Fire 13 | . . 13 Melee . | . . . Ram . | . . . Kick . | . . . Crush . | . . . Escape Stasis . | . . . Rewire . | . . . Trap . | . . . Miscellaneous . | . . . Route ------- -11/Junkyard -10/Materials -9/Materials History --------- Turn | Location | Event 17 | -11/Junkyard | Discovered new exit (range 16) 36 | -11/Junkyard | Entered Materials 110 | -10/Materials | Discovered new exit (range 11) 162 | -10/Materials | Entered another Materials area 162 | -9/Materials | Evolved 2 slots: Propulsion x2 288 | -9/Materials | Self-destructed Last Messages --------------- M010. 00186_ O-16 Technician locks terminal. 00218_ S-10 Pest destroyed. 00218_ Switching to secondary target: S-10 Pest. 00223_ S-10 Pest destroyed. 00223_ Switching to secondary target: S-10 Pest. 00231_ Com. Wheel destroyed. 00232_ S-10 Pest destroyed. 00232_ Switching to secondary target: S-10 Pest. 00232_ S-10 Pest destroyed. 00235_ Acquired 14 matter. 00250_ R-06 Scavenger destroyed. 00259_ Acquired 18 matter. 00261_ K-01 Serf cleans the Terminal. 00273_ Dropped Sml. Laser. 00273_ Acquired Mace. 00281_ Acquired 15 matter. 00283_ Acquired Flight Unit. 00285_ Acquired 10 matter. 00287_ K-01 Serf cleans the Terminal. Map ----- +----------------------------------------------------+ | | | | | | | | | | | | | | | | | | | | | | | | | | | | | ??????????????###############????????????????????? | | ??????????????#* #????????????????????? | | ??????????????# """ """ #????????????????????? | | ??????????????# """"""""" #????????????????????? | | ??????????????# """"" #????????????????????? | | ??????????????# #????????????????????? | | ??????????????# [ #????????????????????? | | ??????????????#######+#######????????????????????? | | #################### #????????????????????? | | !%! * [ #????????????????????? | | #################### *[ #????????????????????? | | ???????????????????######@ #????????????????????? | | ????????????????????????# #????????????????????? | | ????????????????????????#Y #????????????????????? | | ????????????????????????# #????????????????????? | | ????????????????????????# #????????????????????? | | ????????????????????????# #????????????????????? | | ????????????????????????# #????????????????????? | | ???????????????????????? ????????????????????? | | ???????????????????????? ????????????????????? | | ???????????????????????? T #???????????????????? | | ???????????????????????? k #???????????????????? | | ???????????????????????? #???????????????????? | | ???????????????????????### ###???????????????????? | | ??????????????????????????a??????????????????????? | | ?????????????????????????????????????????????????? | | ?????????????????????????????????????????????????? | | ?????????????????????????????????????????????????? | | ?????????????????????????????????????????????????? | | ?????????????????????????????????????????????????? | | ?????????????????????????????????????????????????? | | ?????????????????????????????????????????????????? | | ?????????????????????????????????????????????????? | | ?????????????????????????????????????????????????? | | ?????????????????????????????????????????????????? | | ?????????????????????????????????????????????????? | +----------------------------------------------------+ Best States ------------- Heat Dissipation 28 Energy Generation 12 Energy Capacity 265 Matter Stores 178 Matter Capacity 300 Sight Range 16 Robot Scan Range 14 Terrain Scan Density 10 Resistance: KI 20 Resistance: TH 20 Resistance: EX 20 Resistance: EM 20 Resistance: I 20 Resistance: S 20 Resistance: P 20 Evasion (%) 40 Offensive Hacking 10 Item Schematics ----------------- None Robot Schematics ------------------ None Fabricated ------------ Nothing Alien Tech Used ----------------- None Achievements -------------- None Challenges ------------ None Game ------ Seed Xero Manual? 1 Play Time 00:03:06 Cumulative 33.6 hours Start 2023.04.12 @ 14:58:30 End 2023.04.12 @ 15:00:37 Sessions 1 Manual Loads 0 Difficulty Adventurer Special Mode None Game No. 20 Rogue 0 Adventurer 20 Explorer 0 Win Type - Total 0 Types 0/0/0/0/0/0/0/0/0 Lore% 30 Gallery% 38 Achievement% 33 Wizard Run 0 Options --------- ASCII 0 Keyboard 0 Movement Mouse Keybinds 0 Fullscreen 1 Font 18/X11 Map View 76x50 Tactical HUD 1 Map Filters NONE Filters NONE Steam 1 RUN: 71ea2045-8db2-4cc8-9ef0-12384771f230